fUSD/lending_fUSD_20240209
["ID","MTS","AMOUNT","RATE_DAILY","PERIOD"]
[313609442,1707478241903,-3000.0,0.0003,2]
[313609444,1707478241913,-3000.0,0.0003001,2]
[313609446,1707478241922,-3000.0,0.0003002,2]
[313609448,1707478241931,-3000.0,0.0003003,2]
[313609450,1707478241940,-3000.0,0.0003004,2]
[313609452,1707478241949,-3000.0,0.0003005,2]
[313609454,1707478241958,-3000.0,0.0003006,2]
[313609456,1707478241968,-3000.0,0.0003007,2]
[313609458,1707478241978,-3000.0,0.0003008,2]
[313609460,1707478241987,-3179.05559642,0.00030083,2]
[313609462,1707478241996,-3000.0,0.0003009,2]
[313609464,1707478242004,-3000.0,0.000301,2]
[313609466,1707478242014,-3000.0,0.0003011,2]
[313609467,1707478242024,-3000.0,0.0003012,2]
[313609469,1707478242033,-552.14067807,0.00030128,2]
[313609470,1707478242042,-500.0,0.00030128,2]
[313609471,1707478242051,-155.52464778,0.00030128,2]
[313609472,1707478242060,-3000.0,0.0003013,2]
[313609473,1707478242070,-4382.0,0.0003014,2]
[313609474,1707478242080,-152.11313562,0.00030154,2]
[313609475,1707478242090,-3179.05559642,0.00030316,2]
[313609476,1707478242098,-3179.05559642,0.00030548,2]
[313609477,1707478242108,-7055.32526414,0.00030668,2]
[313609478,1707478242117,-1647.753,0.0003078,2]
[313609479,1707478242126,-2842.9886,0.0003078,2]
[313609480,1707478242135,-3179.05559642,0.0003078,2]
[313609481,1707478242144,-177.78732626,0.0003078,3]
[313609482,1707478242153,-8136.455091,0.000308,2]
[313609483,1707478242163,-17601.28828575,0.00030878,2]
[313609484,1707478242172,-1557.34162499,0.00030878,4]
[313609485,1707478242181,-958.41935477,0.00030879,4]
[313609486,1707478242190,-147134.2215,0.0003088,2]
[313609487,1707478242199,-6570.4673,0.0003088,2]
[313609488,1707478242371,-500.0,0.0003088,2]
[313609489,1707478242381,-2000.0,0.0003088,4]
[313609490,1707478242391,-329.7576,0.0003088,2]
[313609491,1707478242401,-900.0,0.0003088,2]
[313609492,1707478242411,-2249.1567,0.0003088,2]
[313609493,1707478242421,-872.6176,0.0003088,2]
[313609494,1707478242431,-152.11313562,0.0003088,2]
[313609495,1707478242440,-1129.9463677,0.0003088,2]
[313609496,1707478242450,-5000.0,0.0003088,2]
[313609497,1707478242459,-4523.30550861,0.0003088,2]
[313609498,1707478242470,-544.05912263,0.0003088,2]
[313609499,1707478242479,-1805.28593148,0.0003088,2]
[313609500,1707478242487,-177.78732625,0.0003088,3]
[313609501,1707478242496,-150.1914026,0.00030949,2]
[313609502,1707478242505,-423.07335202,0.00030963,4]
[313609503,1707478242515,-702.24223839,0.0003097,2]
[313609504,1707478242524,-417.88419169,0.00030978,4]
[313609505,1707478242533,-159.99282396,0.00030978,4]
[313609506,1707478242542,-163.16886553,0.00030978,4]
[313609507,1707478242552,-708.49547189,0.00030978,4]
[313609509,1707478242561,-292.03581491,0.00030978,4]
[313609510,1707478242570,-155.0,0.00030978,4]
[313609512,1707478242579,-6936.96859286,0.00030978,4]
[313609514,1707478242588,-4655.29003696,0.00030979,4]
[313609516,1707478242597,-151.5005338,0.00030979,2]
[313609518,1707478242607,-3312.12304812,0.00030979,2]
[313609520,1707478242616,-464.6611958,0.00030979,2]
[313609522,1707478242625,-176.67181552,0.00030979,2]
[313609524,1707478242636,-79200.03136863,0.00030979,2]
[313609526,1707478242647,-214.72747642,0.00030979,2]
[313609528,1707478242656,-4825722.03634456,0.0003098,2]
[313609530,1707478242666,-6535.6695106,0.0003098,4]
[313609531,1707478242676,-200.0,0.0003098,2]
[313609533,1707478242686,-687.53321351,0.0003098,4]
[313609534,1707478242696,-1973.32966249,0.0003098,2]
[313609535,1707478242705,-5644.0976297,0.0003098,2]
[313609536,1707478242716,-883.31627943,0.0003098,4]
[313609537,1707478242726,-869.33616524,0.0003098,4]
[313609538,1707478242735,-500.0,0.0003098,2]
[313609539,1707478242744,-500.0,0.0003098,2]
[313609540,1707478242753,-923.56022479,0.0003098,4]
[313609542,1707478242762,-3000.0,0.0003098,2]
[313609543,1707478242772,-4000.0,0.0003098,2]
[313609544,1707478242781,-500.0,0.00031,3]
[313609545,1707478242790,-1353.35258582,0.00031026,5]
[313609546,1707478242799,-185.98,0.00031193,2]
[313609547,1707478242809,-6666.65053175,0.00031357,14]
[313609548,1707478242818,-500.0,0.00031358,2]
[313609549,1707478242827,-1246.50098923,0.00031382,2]
[313609550,1707478242836,-156.89060781,0.00031425,7]
[313609551,1707478242845,-180.0,0.00031699,2]
[313609552,1707478242853,-154.45,0.00031699,2]
[313609553,1707478242862,-200.0,0.00031749,2]
[313609554,1707478242871,-800.0,0.00031749,2]
[313609555,1707478242880,-138181.739636,0.000318,3]
[313609556,1707478242890,-204.49739544,0.00031926,7]
[313609557,1707478242899,-229.05790273,0.00031926,6]
[313609558,1707478242909,-248.12999186,0.00031926,6]
[313609559,1707478242918,-1000.0,0.00031926,7]
[313609560,1707478242929,-297.81823591,0.00031926,6]
[313609561,1707478242939,-199.67813403,0.00031926,6]
[313609562,1707478242948,-421.52052335,0.00031926,6]
[313609563,1707478242958,-257.0256135,0.00031926,6]
[313609564,1707478242969,-268.04304664,0.00031926,6]
[313609565,1707478242981,-225.14540329,0.00031926,6]
[313609566,1707478242991,-216.37656839,0.00031926,6]
[313609567,1707478243002,-2000.0,0.00032,2]
[313609568,1707478243012,-1353.35258582,0.00032171,5]
[313609569,1707478243023,-207.0,0.00032226,9]
[313609570,1707478243034,-154.45,0.00032467,2]
[313609571,1707478243044,-4000.0,0.000325,3]
[313609572,1707478243054,-153.31269657,0.00032748,2]
[313609573,1707478243064,-204.349048,0.00032765,2]
[313609574,1707478243074,-1000.0,0.00032865,2]
[313609575,1707478243084,-1000.0,0.00032865,2]
[313609576,1707478243093,-1000.0,0.00032865,2]
[313609577,1707478243102,-1000.0,0.00032865,2]
[313609578,1707478243111,-1000.0,0.00032865,2]
[313609579,1707478243122,-193.5655,0.00032865,2]
[313609580,1707478243131,-159.265875,0.00032877,30]
[313609581,1707478243140,-1000.0,0.00032909,2]
[313609582,1707478243150,-400.0,0.0003297,2]
[313609583,1707478243160,-2168.939588,0.00033,2]
[313609584,1707478243169,-500.0,0.00033054,2]
[313609585,1707478243179,-871.65,0.00033151,120]
[313609586,1707478243189,-154.45,0.00033236,2]
[313609587,1707478243199,-1353.35258582,0.00033317,6]
[313609588,1707478243209,-185.98,0.00033456,2]
[313609589,1707478243220,-151.0,0.00033635,120]
[313609590,1707478243229,-200.0,0.00033863,2]
[313609591,1707478243239,-151.37915999,0.000339,2]
[313609592,1707478243248,-151.37915992,0.000339,2]
[313609593,1707478243258,-151.37915992,0.000339,2]
[313609594,1707478243268,-151.37915992,0.000339,2]
[313609595,1707478243277,-151.37915992,0.000339,2]
[313609596,1707478243286,-151.37915992,0.000339,2]
[313609597,1707478243296,-151.37915992,0.000339,2]
[313609598,1707478243305,-151.37915992,0.000339,2]
[313609599,1707478243314,-151.37915992,0.000339,2]
[313609600,1707478243323,-151.37915992,0.000339,2]
[313609601,1707478243332,-151.37915992,0.000339,2]
[313609602,1707478243342,-155.0,0.00034,4]
[313609603,1707478243352,-766.92032321,0.00034,4]
[313609604,1707478243362,-154.45,0.00034004,2]
[313609605,1707478243371,-151.37915992,0.00034179,2]
[313609606,1707478243381,-151.0,0.00034321,30]
[313609607,1707478243390,-1129.94636769,0.0003439,2]
[313609608,1707478243399,-4523.3055086,0.0003439,2]
[313609609,1707478243409,-1805.28593147,0.0003439,2]
[313609610,1707478243419,-1353.35258582,0.00034463,7]
[313609611,1707478243429,-151.37915992,0.00034479,2]
[313609612,1707478243439,-5419.429564,0.000345,2]
[313609613,1707478243448,-230.22393595,0.00034517,4]
[313609614,1707478243457,-155.42920267,0.00034517,4]
[313609615,1707478243467,-292.71354073,0.00034517,4]
[313609616,1707478243476,-2178.02736905,0.00034517,4]
[313609617,1707478243486,-162.73999049,0.00034518,4]
[313609618,1707478243495,-1059.83118801,0.00034518,4]
[313609619,1707478243504,-258.42375054,0.00034518,4]
[313609620,1707478243514,-4499.68676317,0.00034518,4]
[313609621,1707478243523,-11162.743268,0.0003452,2]
[313609622,1707478243532,-26477.788077,0.0003452,2]
[313609623,1707478243541,-204.521275,0.00034568,4]
[313609624,1707478243550,-154.45,0.00034772,2]
[313609625,1707478243559,-151.37915992,0.00034779,2]
[313609626,1707478243568,-16744.114902,0.00034794,2]
[313609627,1707478243577,-39716.682116,0.00034794,2]
[313609628,1707478243586,-8129.144346,0.000348,2]
[313609629,1707478243596,-1404.2566259,0.0003487,14]
[313609630,1707478243605,-14888.6554098,0.000349,2]
[313609631,1707478243614,-2197.07647208,0.000349,2]
[313609632,1707478243623,-2197.076472,0.000349,2]
[313609633,1707478243633,-2197.076472,0.000349,2]
[313609634,1707478243643,-204.44916776,0.00034901,2]
[313609635,1707478243652,-5041.12477025,0.00034901,2]
[313609636,1707478243664,-253.58144732,0.00034917,4]
[313609637,1707478243673,-5115.29123698,0.00034918,5]
[313609638,1707478243682,-203.90785178,0.00034918,4]
[313609639,1707478243692,-200.5720953,0.00034918,4]
[313609640,1707478243702,-155.0,0.00034918,4]
[313609641,1707478243711,-156.52314139,0.00034918,4]
[313609642,1707478243721,-22325.486536,0.00034931,2]
[313609643,1707478243730,-52955.576155,0.00034931,2]
[313609644,1707478243740,-200.0,0.00034959,2]
[313609645,1707478243750,-1744.62924922,0.0003499,2]
[313609646,1707478243759,-155.5205679,0.00035,2]
[313609647,1707478243768,-155.0,0.00035,2]
[313609648,1707478243778,-450.73118674,0.00035,4]
[313609649,1707478243787,-15837.42144859,0.00035,7]
[313609650,1707478243796,-1267.66229239,0.00035,4]
[313609651,1707478243806,-186.88849542,0.00035,4]
[313609652,1707478243815,-511.08782361,0.00035,6]
[313609653,1707478243824,-1000000.0,0.00035,10]
[313609654,1707478243834,-1000000.0,0.00035,7]
[313609655,1707478243843,-429.68184201,0.00035,5]
[313609656,1707478243852,-1511.47480736,0.00035,2]
[313609657,1707478243861,-3000.0,0.00035,15]
[313609658,1707478243870,-10838.859129,0.00035,2]
[313609659,1707478243880,-164.66787514,0.00035,2]
[313609660,1707478243889,-15454.72874103,0.00035,2]
[313609661,1707478243898,-15454.72874103,0.00035,2]
[313609662,1707478243907,-3000.0,0.0003501,15]
[313609663,1707478243917,-5463.760909,0.0003502,15]
[313609664,1707478243926,-151.0,0.00035022,7]
[313609665,1707478243935,-27906.85817,0.00035068,2]
[313609666,1707478243945,-66194.470194,0.00035068,2]
[313609667,1707478243954,-151.37915992,0.00035079,2]
[313609668,1707478243963,-152.0,0.00035089,3]
[313609669,1707478243973,-2482.40147742,0.0003509,2]
[313609670,1707478243983,-500.0,0.00035325,2]
[313609671,1707478243993,-39069.601439,0.00035342,2]
[313609672,1707478244002,-92672.258272,0.00035342,2]
[313609673,1707478244012,-151.37915992,0.00035379,2]
[313609674,1707478244021,-253.57,0.000354,30]
[313609675,1707478244031,-156.32588012,0.000355,30]
[313609676,1707478244040,-154.45,0.00035541,2]
[313609677,1707478244049,-13548.573911,0.000356,2]
[313609678,1707478244058,-432.92666658,0.00035616,2]
[313609679,1707478244067,-500.0,0.00035616,2]
[313609680,1707478244077,-300.0,0.00035616,2]
[313609682,1707478244086,-2197.076472,0.00035617,2]
[313609684,1707478244095,-151.37915992,0.00035679,2]
[313609686,1707478244104,-235.05667468,0.000357,2]
[313609688,1707478244113,-185.98,0.0003572,2]
[313609689,1707478244122,-151.0,0.00035737,4]
[313609691,1707478244132,-3338.10712424,0.00035888,30]
[313609693,1707478244141,-500.0,0.0003589,2]
[313609695,1707478244150,-151.37915992,0.00035979,2]
[313609697,1707478244160,-3000.0,0.0003598,2]
[313609699,1707478244170,-300.57859768,0.00036,4]
[313609701,1707478244179,-46195.2974172,0.00036,30]
[313609702,1707478244189,-6187.63993866,0.00036,2]
[313609703,1707478244198,-18968.003476,0.00036,2]
[313609704,1707478244207,-1899.12536046,0.00036002,4]
[313609705,1707478244217,-4670.54621976,0.00036002,30]
[313609706,1707478244227,-1775.54,0.00036002,5]
[313609707,1707478244236,-1784.43,0.00036002,5]
[313609708,1707478244246,-1830.68,0.00036002,5]
[313609709,1707478244256,-1807.79,0.00036002,5]
[313609710,1707478244265,-500.0,0.00036164,2]
[313609712,1707478244275,-207.0,0.00036194,16]
[313609713,1707478244284,-200.0,0.00036278,2]
[313609714,1707478244293,-151.37915992,0.00036279,2]
[313609715,1707478244303,-150.64,0.00036279,2]
[313609716,1707478244312,-154.45,0.00036309,2]
[313609717,1707478244322,-500.0,0.00036438,2]
[313609718,1707478244331,-194.55,0.00036438,2]
[313609719,1707478244341,-194.55,0.00036438,90]
[313609720,1707478244350,-151.0,0.00036466,2]
[313609721,1707478244359,-1000.0,0.00036566,2]
[313609722,1707478244368,-151.37915992,0.00036578,2]
[313609723,1707478244378,-500.0,0.00036712,2]
[313609724,1707478244387,-701.21597778,0.0003676,4]
[313609725,1707478244397,-151.37915992,0.00036878,2]
[313609726,1707478244406,-500.0,0.00036986,2]
[313609727,1707478244416,-74452.47266866,0.00037,4]
[313609728,1707478244425,-311.75294911,0.00037,4]
[313609729,1707478244435,-154.45,0.00037078,2]
[313609730,1707478244566,-151.37915992,0.00037178,2]
[313609731,1707478244591,-2197.076472,0.00037196,2]
[313609732,1707478244601,-500.0,0.0003726,2]
[313609733,1707478244610,-1000.0,0.000373,2]
[313609734,1707478244619,-151.37915992,0.00037478,2]
[313609735,1707478244629,-40000.0,0.000375,7]
[313609736,1707478244640,-263.4960052,0.00037518,4]
[313609738,1707478244648,-500.0,0.00037534,2]
[313609739,1707478244658,-500.0,0.00037596,2]
[313609741,1707478244670,-200.0,0.00037596,2]
[313609743,1707478244679,-151.37915992,0.00037778,2]
[313609745,1707478244688,-500.0,0.00037808,2]
[313609747,1707478244697,-154.45,0.00037846,2]
[313609749,1707478244706,-400.0,0.0003787,2]
[313609751,1707478244715,-19342.56041486,0.00037886,15]
[313609753,1707478244725,-50000.0,0.00037886,15]
[313609755,1707478244734,-16183.08575204,0.00037886,15]
[313609757,1707478244744,-1823.74,0.00037897,5]
[313609759,1707478244754,-2180.72664687,0.00037897,4]
[313609761,1707478244764,-203.46468066,0.00037897,4]
[313609763,1707478244773,-530.29135812,0.00037897,4]
[313609765,1707478244781,-2125.5203468,0.00037897,4]
[313609767,1707478244791,-221.92033421,0.00037897,4]
[313609769,1707478244799,-155.78964465,0.00037897,4]
[313609770,1707478244808,-382.85270261,0.00037897,4]
[313609771,1707478244817,-253.61352161,0.00037897,4]
[313609772,1707478244827,-156.36311866,0.00037897,4]
[313609773,1707478244836,-2807.51865324,0.00037897,4]
[313609774,1707478244846,-4193.95288374,0.00037897,4]
[313609775,1707478244854,-716.97515648,0.00037897,4]
[313609776,1707478244863,-156.16027871,0.00037897,4]
[313609777,1707478244873,-235.23595444,0.00037897,4]
[313609778,1707478244883,-475.28170512,0.00037897,4]
[313609779,1707478244892,-1348.9027034,0.00037898,2]
[313609780,1707478244901,-177.75953143,0.000379,4]
[313609781,1707478244910,-245.07262478,0.000379,4]
[313609782,1707478244920,-266.0,0.000379,27]
[313609783,1707478244929,-1985.185193,0.000379,8]
[313609784,1707478244939,-642910.246785,0.000379,3]
[313609785,1707478244948,-1129.94636769,0.000379,2]
[313609786,1707478244958,-4523.3055086,0.000379,2]
[313609787,1707478244968,-1805.28593147,0.000379,2]
[313609788,1707478244977,-19740.64333056,0.00037912,15]
[313609789,1707478244986,-185.98,0.00037984,2]
[313609790,1707478244995,-1822.12,0.00037997,5]
[313609791,1707478245005,-4640.49946068,0.00038,3]
[313609792,1707478245015,-1122359.08136728,0.00038,2]
[313609793,1707478245025,-173.81386207,0.00038,4]
[313609794,1707478245034,-6587.11353043,0.00038,7]
[313609795,1707478245044,-1135843.52150961,0.00038,2]
[313609796,1707478245054,-10000.0,0.00038,2]
[313609797,1707478245063,-27300.7464204,0.00038002,15]
[313609798,1707478245073,-61901.22054025,0.00038002,15]
[313609799,1707478245082,-151.37915992,0.00038078,2]
[313609800,1707478245092,-500.0,0.00038082,2]
[313609801,1707478245101,-295.49985381,0.00038356,2]
[313609802,1707478245111,-500.0,0.00038356,13]
[313609803,1707478245120,-500.0,0.00038356,13]
[313609804,1707478245130,-500.0,0.00038356,13]
[313609805,1707478245139,-634.0,0.00038356,13]
[313609806,1707478245149,-151.03,0.00038356,2]
[313609807,1707478245159,-151.37915992,0.00038378,2]
[313609808,1707478245169,-266.0,0.000384,27]
[313609809,1707478245178,-45612.19008735,0.0003844,4]
[313609810,1707478245187,-154.45,0.00038615,2]
[313609811,1707478245197,-151.37915992,0.00038678,2]
[313609812,1707478245206,-3580.93,0.00038716,2]
[313609813,1707478245216,-2197.076472,0.00038775,2]
[313609814,1707478245228,-21428.89231841,0.000388,4]
[313609815,1707478245237,-11110.81913295,0.0003888,2]
[313609816,1707478245246,-11110.81913294,0.0003888,2]
[313609817,1707478245255,-11110.81913294,0.0003888,2]
[313609818,1707478245264,-11110.81913294,0.0003888,2]
[313609819,1707478245273,-11110.81913294,0.0003888,2]
[313609820,1707478245283,-11110.81913294,0.0003888,2]
[313609821,1707478245294,-11110.81913294,0.0003888,2]
[313609822,1707478245304,-11110.81913294,0.0003888,2]
[313609823,1707478245315,-11110.81913294,0.0003888,2]
[313609824,1707478245324,-29492.9368146,0.00038889,17]
[313609825,1707478245334,-266.0,0.000389,28]
[313609826,1707478245344,-151.37915992,0.00038978,2]
[313609827,1707478245353,-283.23781815,0.0003898,2]
[313609828,1707478245363,-979.97241271,0.00039,4]
[313609829,1707478245372,-1434.10743003,0.00039,2]
[313609830,1707478245382,-245.505025,0.00039,5]
[313609831,1707478245391,-297.76247139,0.00039,40]
[313609832,1707478245401,-10000.0,0.00039,2]
[313609833,1707478245411,-3000.0,0.00039,32]
[313609834,1707478245420,-3000.0,0.0003901,32]
[313609835,1707478245429,-5463.760909,0.0003902,32]
[313609836,1707478245439,-1000.0,0.00039045,10]
[313609837,1707478245449,-1000.0,0.00039045,10]
[313609838,1707478245459,-1000.0,0.00039045,10]
[313609839,1707478245468,-1000.0,0.00039045,10]
[313609840,1707478245480,-1036426.83,0.0003922,5]
[313609841,1707478245490,-11653.31,0.0003922,5]
[313609842,1707478245499,-64184.99,0.0003922,5]
[313609843,1707478245509,-13344.48,0.0003922,5]
[313609844,1707478245518,-109010.2,0.0003922,5]
[313609845,1707478245528,-34607.6,0.0003922,5]
[313609846,1707478245539,-23793.13,0.0003922,5]
[313609848,1707478245549,-55185.26,0.0003922,5]
[313609849,1707478245558,-5484.75,0.0003922,5]
[313609850,1707478245567,-52605.11,0.0003922,5]
[313609851,1707478245577,-61159.22,0.0003922,5]
[313609852,1707478245586,-156.12,0.0003926,2]
[313609853,1707478245595,-151.37915992,0.00039278,3]
[313609855,1707478245604,-154.45,0.00039383,2]
[313609856,1707478245614,-266.0,0.000394,28]
[313609857,1707478245623,-158.0,0.00039476,2]
[313609858,1707478245633,-5000.0,0.000395,4]
[313609859,1707478245649,-152.0,0.0003952,4]
[313609860,1707478245659,-151.37915992,0.00039578,5]
[313609861,1707478245668,-75000.0,0.00039644,15]
[313609862,1707478245678,-5000.0,0.00039688,4]
[313609863,1707478245689,-151.03,0.00039726,2]
[313609865,1707478245698,-151.37915992,0.00039878,6]
[313609867,1707478245707,-266.0,0.000399,29]
[313609869,1707478245716,-111387.7220855,0.000399,3]
[313609871,1707478245727,-11110.81913294,0.000399,2]
[313609873,1707478245736,-500.0,0.00039902,10]
[313609875,1707478245746,-1237.4212956,0.00039973,2]
[313609877,1707478245755,-1237.4212956,0.00039973,2]
[313609879,1707478245764,-4245.6759245,0.00039973,2]
[313609881,1707478245774,-4245.6759245,0.00039973,2]
[313609883,1707478245782,-615.242196,0.00039973,2]
[313609885,1707478245791,-615.242196,0.00039973,2]
[313609887,1707478245800,-419.8344689,0.00039973,2]
[313609888,1707478245809,-419.8344689,0.00039973,2]
[313609889,1707478245819,-156.7448875,0.00039973,2]
[313609890,1707478245828,-50000.0,0.0004,9]
[313609891,1707478245838,-5682.00562991,0.0004,4]
[313609892,1707478245847,-22117.68647422,0.0004,4]
[313609893,1707478245856,-1088.67175974,0.0004,4]
[313609894,1707478245865,-4390.00732164,0.0004,4]
[313609895,1707478245874,-3200.0,0.0004,4]
[313609896,1707478245884,-54488.91732862,0.0004,4]
[313609897,1707478245893,-2279.09360945,0.0004,4]
[313609898,1707478245902,-156.14835388,0.0004,4]
[313609899,1707478245912,-155.0,0.0004,2]
[313609900,1707478245921,-800.0,0.0004,2]
[313609901,1707478245930,-800.0,0.0004,2]
[313609902,1707478245939,-231.44855723,0.0004,5]
[313609903,1707478245948,-1339.34535308,0.0004,5]
[313609904,1707478245957,-6971.50061391,0.0004,7]
[313609905,1707478245967,-35210.20358755,0.0004,7]
[313609906,1707478245977,-1000.0,0.0004,2]
[313609907,1707478245986,-1006.0,0.0004,8]
[313609908,1707478245995,-1003.0,0.0004,8]
[313609909,1707478246004,-11974.59,0.0004,3]
[313609910,1707478246013,-10000.0,0.0004,3]
[313609911,1707478246022,-10000.0,0.0004,3]
[313609912,1707478246031,-328.749807,0.0004,6]
[313609913,1707478246041,-722.68789468,0.0004,30]
[313609914,1707478246050,-13295.58916498,0.0004,12]
[313609915,1707478246060,-10000.0,0.0004,2]
[313609916,1707478246069,-5000.0,0.0004,35]
[313609917,1707478246079,-5000.0,0.0004,30]
[313609918,1707478246088,-150.0,0.0004,120]
[313609919,1707478246097,-18047.33477642,0.0004,30]
[313609920,1707478246107,-40000.0,0.0004,7]
[313609921,1707478246116,-1000000.0,0.0004,15]
[313609922,1707478246125,-500000.0,0.0004,2]
[313609923,1707478246134,-500000.0,0.0004,3]
[313609924,1707478246143,-500000.0,0.0004,4]
[313609925,1707478246152,-500000.0,0.0004,5]
[313609926,1707478246161,-500000.0,0.0004,6]
[313609927,1707478246171,-500000.0,0.0004,7]
[313609928,1707478246180,-500000.0,0.0004,2]
[313609929,1707478246189,-500000.0,0.0004,3]
[313609930,1707478246198,-500000.0,0.0004,4]
[313609931,1707478246208,-500000.0,0.0004,5]
[313609932,1707478246217,-500000.0,0.0004,6]
[313609933,1707478246228,-500000.0,0.0004,7]
[313609934,1707478246238,-1000000.0,0.0004,18]
[313609935,1707478246247,-4432.94,0.0004,8]
[313609936,1707478246257,-1000.0,0.0004,2]
[313609937,1707478246266,-150.0,0.0004,12]
[313609938,1707478246275,-1985.185193,0.0004,12]
[313609939,1707478246284,-432.31,0.0004,2]
[313609940,1707478246293,-15454.72874103,0.0004,2]
[313609941,1707478246302,-15454.72874103,0.0004,2]
[313609942,1707478246311,-154.45,0.00040151,2]
[313609943,1707478246321,-207.0,0.00040162,23]
[313609944,1707478246330,-151.37915992,0.00040177,7]
[313609945,1707478246339,-1000.0,0.00040223,2]
[313609946,1707478246348,-185.98,0.00040248,2]
[313609947,1707478246357,-260.62874586,0.000403,4]
[313609948,1707478246367,-2197.076472,0.00040354,5]
[313609949,1707478246376,-4540.78214623,0.000404,7]
[313609950,1707478246387,-1056.5827954,0.000404,2]
[313609951,1707478246397,-266.0,0.000404,30]
[313609952,1707478246407,-151.0209,0.00040448,18]
[313609953,1707478246417,-1003.12,0.00040448,2]
[313609954,1707478246427,-151.37915992,0.00040477,8]
[313609955,1707478246437,-151.0,0.00040518,2]
[313609956,1707478246448,-250.49088,0.00040518,2]
[313609957,1707478246458,-797.59,0.000406,4]
[313609958,1707478246467,-797.59,0.000406,4]
[313609959,1707478246478,-797.59,0.000406,4]
[313609960,1707478246488,-797.59,0.000406,4]
[313609961,1707478246498,-797.59,0.000406,4]
[313609962,1707478246638,-797.59,0.000406,4]
[313609963,1707478246650,-797.59,0.000406,4]
[313609964,1707478246660,-797.59,0.000406,4]
[313609965,1707478246670,-797.59,0.000406,4]
[313609966,1707478246680,-797.59,0.000406,4]
[313609967,1707478246690,-797.59,0.000406,4]
[313609968,1707478246700,-797.59,0.000406,4]
[313609969,1707478246709,-797.59,0.000406,4]
[313609970,1707478246719,-797.59,0.000406,4]
[313609971,1707478246730,-797.59,0.000406,4]
[313609972,1707478246740,-797.59,0.000406,4]
[313609973,1707478246750,-797.59,0.000406,4]
[313609974,1707478246762,-797.59,0.000406,4]
[313609975,1707478246771,-797.59,0.000406,4]
[313609976,1707478246781,-797.59,0.000406,4]
[313609977,1707478246791,-6620.3644611,0.00040708,5]
[313609978,1707478246800,-151.37915992,0.00040777,9]
[313609979,1707478246810,-2010.86,0.000408,2]
[313609980,1707478246819,-8788.73,0.00040822,2]
[313609981,1707478246829,-266.0,0.000409,30]
[313609982,1707478246838,-154.45,0.0004092,2]
[313609983,1707478246848,-3917.0929692,0.00040972,2]
[313609984,1707478246857,-3000.0,0.0004098,2]
[313609985,1707478246866,-500.0,0.00040998,10]
[313609986,1707478246876,-50000.0,0.00041,11]
[313609987,1707478246885,-768.06413983,0.00041,7]
[313609988,1707478246894,-173751.33085931,0.00041,5]
[313609989,1707478246903,-1278.6425896,0.00041,30]
[313609990,1707478246912,-10000.0,0.00041,2]
[313609991,1707478246921,-1500.0,0.00041,4]
[313609992,1707478246931,-1389.63095951,0.00041077,13]
[313609993,1707478246940,-151.37915992,0.00041077,10]
[313609994,1707478246950,-210432.8,0.00041093,5]
[313609995,1707478246959,-250.10983136,0.00041095,3]
[313609996,1707478246968,-500.0,0.00041095,31]
[313609997,1707478246979,-500.0,0.00041095,31]
[313609998,1707478246988,-505.4905727,0.00041095,31]
[313609999,1707478246997,-503.25731963,0.00041095,31]
[313610000,1707478247007,-490.45486203,0.00041095,31]
[313610001,1707478247016,-272.13520261,0.00041095,31]
[313610002,1707478247026,-500.0,0.00041095,31]
[313610003,1707478247036,-505.6417439,0.00041095,15]
[313610004,1707478247045,-201.28295975,0.00041095,31]
[313610005,1707478247055,-500.0,0.00041095,31]
[313610006,1707478247065,-500.0,0.00041095,31]
[313610007,1707478247074,-1001.60089305,0.00041095,2]
[313610008,1707478247083,-503.03570582,0.00041095,31]